bitfinex/quotes_ETHUSD_20250331
["timestamp","ask_amount","ask_price","bid_price","bid_amount"]
[1743388474775,3.0,1816.6,1816.3,5.50567]
[1743388474932,8.50483,1816.6,1816.3,5.557]
[1743388475133,8.50483,1816.6,1816.3,5.556]
[1743388475339,5.50525,1816.5,1816.3,5.556]
[1743388475541,11.0106,1816.5,1816.1,5.50619]
[1743388475747,5.5059,1816.3,1816.0,5.561]
[1743388475973,6.31686,1816.4,1816.0,11.06757]
[1743388476282,5.5057,1816.3,1815.8,5.507]
[1743388476467,11.4557,1816.3,1815.9,11.06677]
[1743388477454,11.4557,1816.3,1815.9,16.5735]
[1743388477842,5.95,1816.3,1816.0,5.50644]
[1743388478041,11.45584,1816.3,1816.0,5.559]
[1743388479868,11.45584,1816.3,1815.9,11.01363]
[1743388480373,11.45584,1816.3,1815.9,11.05973]
[1743388480668,11.45584,1816.3,1815.9,16.56651]
[1743388480869,11.45584,1816.3,1815.9,11.05973]
[1743388481072,5.50604,1816.2,1815.9,5.553]
[1743388481365,5.50604,1816.2,1815.9,11.05989]
[1743388481573,18.739006,1816.3,1815.9,11.05989]
[1743388482386,13.233126,1816.3,1815.9,11.05989]
[1743388483038,5.506,1816.2,1815.9,11.05989]
[1743388483369,5.50642,1816.1,1815.7,7.38692405]
[1743388483691,5.50667,1816.0,1815.7,5.539]
[1743388483846,5.50667,1816.0,1815.5,38.07361]
[1743388484043,6.33931,1815.9,1815.5,37.29711]
[1743388484237,5.50723,1815.8,1815.5,31.789]
[1743388484442,6.33931,1815.9,1815.5,31.789]
[1743388484643,6.33931,1815.9,1815.5,37.29701]
[1743388485645,5.50722,1815.8,1815.5,31.789]
[1743388485970,6.33931,1815.9,1815.5,31.789]
[1743388486170,6.33931,1815.9,1815.5,37.29706]
[1743388486371,5.5099,1815.0,1814.5,5.51116]
[1743388486581,14.92885346,1814.9,1814.4,6.2879]
[1743388486871,0.8324,1814.9,1814.5,5.51114]
[1743388487038,5.95,1815.0,1814.6,5.51069]
[1743388487470,5.95,1815.0,1814.8,5.5101]
[1743388487771,9.34073,1815.5,1815.0,5.5095]
[1743388487969,10.869803,1815.5,1815.1,5.581]
[1743388488548,10.869803,1815.5,1815.0,5.5095]
[1743388488754,10.869803,1815.5,1814.9,6.05983]
[1743388488755,5.50906,1815.2,1814.9,5.581]
[1743388490755,5.50906,1815.2,1814.7,11.0208]
[1743388491076,5.51028,1814.8,1814.6,31.794]
[1743388491449,11.02081,1814.8,1814.6,31.794]
[1743388491645,5.51055,1814.7,1814.6,31.794]
[1743388492048,6.34295,1814.7,1814.6,31.794]
[1743388492650,5.51088,1814.6,1814.3,5.584]
[1743388493595,5.51141,1814.5,1814.3,5.584]
[1743388493877,5.51141,1814.5,1814.1,5.682]
[1743388494080,5.51149,1814.4,1814.1,5.682]
[1743388495078,5.51149,1814.4,1814.1,0.1]
[1743388495079,1.40991335,1814.4,1814.1,0.1]
[1743388495278,8.58718346,1814.6,1814.1,0.1]
[1743388495575,8.58718346,1814.6,1814.2,5.51205]
[1743388496161,9.02623346,1814.8,1814.4,5.5114]
[1743388496364,9.02623346,1814.8,1814.3,0.7765]
[1743388496564,9.02623346,1814.8,1814.4,5.581]
[1743388496782,10.01209681,1814.8,1814.4,5.581]
[1743388497082,5.51058,1814.7,1814.4,5.581]
[1743388497265,5.51089,1814.6,1814.4,5.581]
[1743388498065,5.51058,1814.7,1814.4,5.581]
[1743388498385,5.51058,1814.7,1814.3,5.575]
[1743388498550,11.02142,1814.7,1814.3,5.575]
[1743388498755,5.51088,1814.6,1814.3,5.575]
[1743388499589,6.12396172,1814.7,1814.3,11.08675]
[1743388500185,6.12396172,1814.7,1814.3,5.575]
[1743388500759,0.61338172,1814.7,1814.5,5.511]
[1743388500976,6.7824,1814.9,1814.5,6.3142]
[1743388501178,12.29251,1814.9,1814.5,0.8033]
[1743388501377,6.7824,1814.9,1814.5,6.31427]
[1743388501589,5.51051,1814.8,1814.5,0.8033]
[1743388503280,5.51066,1814.7,1814.2,6.31507]
[1743388503486,5.51066,1814.7,1814.4,5.556]
[1743388503802,6.612752,1814.7,1814.4,5.556]
[1743388503962,5.51066,1814.7,1814.4,5.556]
[1743388504674,15.78345537,1814.9,1814.4,11.06743]
[1743388505197,5.51026,1814.8,1814.4,16.57869]
[1743388505690,15.78345537,1814.9,1814.5,5.51092]
[1743388505691,6.7824,1814.9,1814.5,5.51092]
[1743388505893,5.50996,1814.9,1814.5,5.51092]
[1743388506587,0.7882,1815.1,1814.6,5.51085]
[1743388506788,14.53507346,1815.3,1814.9,5.50977]
[1743388506789,15.32327346,1815.3,1814.9,5.50977]
[1743388507094,15.32327346,1815.3,1814.9,0.8033]
[1743388507095,5.50908,1815.2,1814.9,0.8033]
[1743388507300,5.50933,1815.1,1814.9,0.8033]
[1743388507688,5.50908,1815.2,1814.9,0.8033]
[1743388507892,5.50908,1815.2,1814.9,6.31322]
[1743388508716,3.86443346,1815.5,1814.9,6.31322]
[1743388508717,6.29632,1815.5,1815.0,0.55]
[1743388508872,3.0,1815.4,1815.1,5.50933]
[1743388509071,5.50785,1815.6,1815.0,0.55]
[1743388509294,5.50785,1815.6,1815.1,5.50903]
[1743388509493,3.0,1815.5,1815.2,5.543]
[1743388509670,3.0,1815.5,1815.2,11.05202]
[1743388509865,5.50785,1815.6,1815.2,11.05202]
[1743388510080,3.0,1815.5,1815.2,11.05202]
[1743388510275,15.32195346,1815.7,1815.3,6.31202]
[1743388510483,5.50797,1815.6,1815.2,5.543]
[1743388511072,5.50797,1815.6,1815.2,11.05199]
[1743388512103,5.50821,1815.5,1815.2,5.543]
[1743388512271,5.50796,1815.6,1815.2,11.05197]
[1743388512473,11.01604,1815.6,1815.2,11.05197]
[1743388512873,5.50796,1815.6,1815.2,11.05197]
[1743388513399,16.85414881,1815.7,1815.3,5.50861]
[1743388513603,9.81443346,1815.7,1815.4,5.50814]
[1743388513774,9.37197346,1815.7,1815.3,5.50872]
[1743388514100,5.95,1816.1,1815.7,5.50732]
[1743388514302,0.823,1816.2,1815.8,6.25766]
[1743388514505,11.01311,1816.1,1815.6,11.5837]
[1743388514706,9.40543346,1816.2,1815.7,5.50734]
[1743388514879,9.40543346,1816.2,1815.8,5.50708]
[1743388515080,5.50594,1816.3,1815.9,5.50677]
[1743388515286,5.30375635,1816.3,1816.0,5.50639]
[1743388515487,6.773,1816.4,1816.0,11.03739]
[1743388515809,5.50512,1816.5,1816.1,5.50609]
[1743388516392,5.50512,1816.5,1816.0,11.03759]
[1743388516393,5.95,1816.6,1816.2,6.25646]
[1743388516793,3.0,1816.5,1816.2,6.25646]
[1743388517574,8.50529,1816.5,1816.2,0.7506]
[1743388518308,6.32843,1816.4,1816.0,0.7506]
[1743388518507,5.50579,1816.3,1815.9,5.50663]
[1743388518811,5.50579,1816.3,1815.9,11.03263]
[1743388519006,6.32843,1816.4,1815.9,11.03263]
[1743388519206,11.83412,1816.4,1815.9,11.03263]
[1743388519410,13.82475855,1816.4,1815.9,11.03263]
[1743388519710,8.31906855,1816.4,1815.9,11.03263]
[1743388520010,5.50574,1816.3,1815.9,11.03263]
[1743388521810,11.0117,1816.3,1815.9,5.526]
[1743388521990,8.31907855,1816.4,1815.9,11.03289]
[1743388522177,13.82474855,1816.4,1815.9,11.03275]
[1743388522381,8.31907855,1816.4,1815.9,11.03275]
[1743388522581,5.50587,1816.3,1815.9,16.53953]
[1743388522782,13.82474855,1816.4,1815.9,11.03269]
[1743388523322,13.82474855,1816.4,1815.9,16.53947]
[1743388523517,5.50571,1816.3,1815.9,11.03269]
[1743388523683,8.31907855,1816.4,1815.9,16.53936]
[1743388523885,8.31907855,1816.4,1816.0,5.50655]
[1743388524084,5.50573,1816.3,1815.9,11.03267]
[1743388524388,6.33763786,1816.3,1815.9,11.03267]
[1743388524798,5.50673,1816.0,1815.6,0.7506]
[1743388525112,5.50625,1816.2,1815.8,5.50707]
[1743388525295,0.550625,1816.1,1815.8,5.50707]
[1743388525689,0.550625,1816.1,1815.7,5.50734]
[1743388526295,6.057075,1816.1,1815.7,11.01474]
[1743388526490,6.057075,1816.1,1815.6,0.7506]
[1743388526491,10.68114132,1816.3,1815.8,5.50709]
[1743388526709,5.95,1816.3,1816.0,6.2571]
[1743388527022,7.49618855,1816.4,1816.0,11.76346]
[1743388527310,7.49618855,1816.4,1816.0,6.25698]
[1743388527513,5.50582,1816.3,1816.0,15.2506]
[1743388527711,5.50582,1816.3,1816.0,0.7506]
[1743388528506,9.88211032,1816.3,1815.9,5.50688]
[1743388528708,8.58192346,1816.3,1815.9,5.50688]
[1743388529909,3.07623346,1816.3,1815.9,5.50676]
[1743388530117,9.40433346,1816.5,1816.0,6.25827]
[1743388530420,8.50483,1816.6,1816.1,5.512]
[1743388530596,3.0,1816.6,1816.2,20.00578]
[1743388530796,3.0,1816.6,1816.3,5.50566]
[1743388531101,3.0,1816.6,1816.4,0.7519]
[1743388531691,14.00987,1816.6,1816.4,0.7519]
[1743388531902,14.00987,1816.6,1816.2,6.25784]
[1743388532724,8.50484,1816.6,1816.2,6.25784]
[1743388532894,3.07623346,1816.7,1816.2,0.7519]
[1743388533093,11.45419,1816.8,1816.3,5.50547]
[1743388533305,16.95864,1816.8,1816.3,5.5055]
[1743388533499,11.45419,1816.8,1816.4,5.50538]
[1743388533706,5.95,1816.8,1816.5,5.50493]
[1743388533906,8.68027346,1816.9,1816.5,5.50493]
[1743388534113,5.60404,1816.9,1816.5,6.25683]
[1743388534496,0.1,1816.9,1816.6,5.50478]
[1743388534693,0.1,1816.9,1816.6,5.50452]
[1743388534914,0.1,1816.9,1816.7,5.50434]
[1743388535113,0.1,1816.9,1816.6,5.50452]
[1743388536224,0.1,1816.9,1816.6,11.0091]
[1743388536413,0.1,1816.9,1816.6,5.50452]
[1743388536614,0.1,1816.9,1816.6,11.00908]
[1743388537119,0.1,1816.9,1816.6,5.50452]
[1743388537314,0.1,1816.9,1816.6,0.55]
[1743388537711,0.1,1816.9,1816.8,6.25608]
[1743388538427,0.1,1816.9,1816.6,11.76256]
[1743388538624,0.1,1816.9,1816.7,5.50436]
[1743388538927,0.1,1816.9,1816.8,5.50418]
[1743388539617,0.1,1816.9,1816.8,6.05418]
[1743388540329,0.1,1816.9,1816.7,5.50433]
[1743388540726,0.1,1816.9,1816.7,5.506]
[1743388541235,0.1,1816.9,1816.7,11.01021]
[1743388542096,0.1,1816.9,1816.7,5.506]
[1743388543225,0.1,1816.9,1816.8,5.50418]
[1743388543911,0.1,1816.9,1816.7,11.01025]
[1743388544106,0.1,1816.9,1816.7,16.51461]
[1743388544304,0.1,1816.9,1816.7,11.01025]
[1743388544727,0.1,1816.9,1816.8,0.55]
[1743388544916,0.1,1816.9,1816.8,6.05418]
[1743388545901,0.1,1816.9,1816.8,6.83618]
[1743388551110,0.1,1816.9,1816.8,6.05418]
[1743388552955,0.1,1816.9,1816.8,7.14243151]
[1743388553163,0.1,1816.9,1816.7,14.5]
[1743388553434,0.1,1816.9,1816.8,5.501]
[1743388554224,0.1,1816.9,1816.7,5.50427]
[1743388554424,0.1,1816.9,1816.7,11.00527]
[1743388554929,0.1,1816.9,1816.8,5.50418]
[1743388555236,0.1,1816.9,1816.8,6.05418]
[1743388555640,0.1,1816.9,1816.8,6.88458]
[1743388557837,0.1,1816.9,1816.8,21.38458]
[1743388560112,0.7851,1817.8,1817.6,5.50173]
[1743388560723,0.7851,1817.8,1817.5,6.05199]
[1743388560921,0.7851,1817.8,1817.6,5.50175]
[1743388561135,0.1,1817.9,1817.5,0.55]
[1743388561353,0.1,1817.9,1817.8,5.50115]
[1743388561532,0.1,1817.9,1817.7,0.55]
[1743388561847,0.1,1817.9,1817.8,5.501]
[1743388563322,0.7851,1817.8,1817.5,11.00201]
[1743388563543,3.47824869,1817.8,1817.5,11.00201]
[1743388563857,2.69314869,1817.6,1817.4,5.5]
[1743388564045,6.28737,1817.5,1817.2,37.271]
[1743388564225,0.7851,1817.5,1817.2,37.271]
[1743388564441,0.7851,1817.5,1817.2,42.77384]
[1743388564645,0.7851,1817.5,1817.2,11.00284]
[1743388564834,0.7851,1817.5,1817.2,5.5]
[1743388565024,6.28716,1817.5,1817.2,5.5]
[1743388565447,0.7851,1817.5,1817.3,5.50248]
[1743388565632,2.69314869,1817.6,1817.3,5.50248]
[1743388566465,2.69314869,1817.6,1817.2,11.00274]
[1743388567036,2.69314869,1817.6,1817.0,5.50343]
[1743388567037,3.47824869,1817.3,1817.0,5.50343]
[1743388567238,3.47824869,1817.3,1817.1,5.50314]
[1743388567623,2.69314869,1817.5,1817.2,5.50297]
[1743388567950,3.47824869,1817.5,1817.2,5.50275]
[1743388568126,3.47824869,1817.5,1817.2,5.50289]
[1743388568734,8.19593869,1817.3,1816.9,5.50388]
[1743388568959,2.69314869,1817.1,1816.8,5.50405]
[1743388569253,0.7851,1817.2,1816.9,5.50375]
[1743388569430,9.42824869,1817.3,1817.0,5.50343]
[1743388569639,16.42404656,1817.3,1816.9,20.00374]
[1743388569839,0.7851,1817.0,1816.8,11.00397]
[1743388570748,2.69314869,1816.9,1816.8,5.5]
[1743388571750,2.69314869,1816.9,1816.6,5.50478]
[1743388571928,2.69314869,1816.9,1816.7,5.5]
[1743388572131,0.7851,1817.0,1816.8,5.50418]
[1743388572439,0.7851,1817.0,1816.7,5.5]
[1743388573360,2.69314869,1816.9,1816.5,20.55493]
[1743388573546,2.69314869,1816.9,1816.6,5.5]
[1743388573751,2.69314869,1816.9,1816.6,11.00461]
[1743388573955,2.69314869,1816.7,1816.5,15.05]
[1743388574159,2.69314869,1816.7,1816.4,31.766]
[1743388574160,0.7975,1816.6,1816.4,31.766]
[1743388574465,2.69314869,1816.5,1816.4,31.766]
[1743388575143,0.7975,1816.6,1816.4,31.766]
[1743388575335,0.7975,1816.6,1816.4,37.27126]
[1743388575535,2.69314869,1816.7,1816.5,5.505]
[1743388575736,2.69314869,1816.7,1816.4,37.27134]
[1743388576332,2.69314869,1816.7,1816.4,37.27116]
[1743388576745,2.69314869,1816.7,1816.5,20.00505]
[1743388576945,2.69314869,1816.7,1816.5,14.5]
[1743388577146,2.69314869,1816.7,1816.5,20.00506]
[1743388577339,2.69314869,1816.7,1816.5,14.5]
[1743388577836,5.50388,1816.9,1816.5,14.5]
[1743388577837,2.69314869,1816.9,1816.6,5.50478]
[1743388578048,2.69314869,1816.9,1816.6,11.00478]
[1743388578244,2.69314869,1816.7,1816.4,32.316]
[1743388578446,2.69314869,1816.5,1816.4,31.766]
[1743388579040,2.69314869,1816.5,1816.2,5.501]
[1743388579041,8.19823869,1816.5,1816.1,14.5]
[1743388579240,2.69314869,1816.3,1815.9,11.00785]
[1743388579461,0.7975,1816.2,1816.0,5.50647]
[1743388579665,2.69314869,1816.3,1816.0,5.50647]
[1743388579867,0.7975,1816.4,1816.2,5.506]
[1743388580167,2.69314869,1816.5,1816.3,5.50569]
[1743388580368,6.7475,1816.6,1816.3,5.50569]
[1743388580569,5.95,1816.6,1816.4,11.00637]
[1743388580743,5.95,1816.6,1816.4,5.501]
[1743388580935,5.95,1816.6,1816.5,14.5]
[1743388581139,3.49064869,1816.8,1816.5,14.5]
[1743388581570,3.49064869,1816.8,1816.4,11.00627]
[1743388581571,10.44482456,1816.8,1816.4,5.501]
[1743388581769,2.69314869,1816.6,1816.4,5.501]
[1743388582065,8.19797869,1816.6,1816.3,5.501]
[1743388582273,0.7952,1816.5,1816.3,5.501]
[1743388584745,2.69314869,1816.4,1816.1,21.07844255]
[1743388584942,2.69314869,1816.4,1816.1,5.501]
[1743388585239,9.09804856,1816.4,1815.9,6.32849]
[1743388585445,9.09804856,1816.4,1816.0,5.501]
[1743388585680,3.59250856,1816.4,1816.0,11.0074]
[1743388585842,14.60377856,1816.4,1816.0,11.0074]
[1743388586042,2.69314869,1816.4,1816.1,5.50613]
[1743388586286,8.99344869,1816.5,1816.0,11.00745]
[1743388586573,5.50544,1816.4,1816.0,11.00745]
[1743388586761,11.01106,1816.4,1816.0,11.00745]
[1743388586960,11.01106,1816.4,1816.0,5.50645]
[1743388587172,5.50674,1816.0,1815.5,6.32971]
[1743388587379,8.99541869,1815.9,1815.5,11.01511]
[1743388587871,8.99541869,1815.9,1815.5,20.007]
[1743388588073,0.7952,1815.9,1815.7,5.50739]
[1743388588289,3.51864869,1816.1,1815.7,0.7567]
[1743388588494,3.51864869,1816.1,1815.9,5.50668]
[1743388588648,3.51864869,1816.1,1815.9,5.507]
[1743388588649,2.69314869,1816.1,1815.9,5.507]
[1743388589557,9.01955556,1816.1,1815.9,5.507]
[1743388589749,14.52609556,1816.1,1815.9,5.507]
[1743388589953,6.3321,1816.0,1815.7,5.508]
[1743388590175,2.69314869,1815.9,1815.7,5.508]
[1743388590383,0.8255,1816.0,1815.7,11.01529]
[1743388590671,0.8255,1816.0,1815.8,5.50721]
[1743388590886,0.8255,1816.0,1815.7,5.508]
[1743388591090,6.33215,1816.0,1815.7,5.508]
[1743388592177,6.33215,1816.0,1815.6,5.509]
[1743388592178,8.20020869,1815.9,1815.6,5.509]
[1743388592475,2.69314869,1815.9,1815.6,11.01681]
[1743388592654,2.69314869,1815.9,1815.6,16.52462]
[1743388593058,2.69314869,1815.9,1815.6,11.01681]
[1743388594303,5.95,1816.1,1815.7,0.7567]
[1743388594448,5.95,1816.1,1815.9,5.5068]
[1743388594781,5.95,1816.1,1815.8,11.0144]
[1743388595295,5.95,1816.1,1816.0,5.5066]
[1743388595457,5.95,1816.1,1815.8,5.50715]
[1743388595657,5.95,1816.1,1815.9,5.50675]
[1743388595853,5.95,1816.1,1815.8,5.50715]
[1743388596355,5.95,1816.1,1815.8,6.05721]
[1743388596660,3.51864869,1816.0,1815.9,5.514]
[1743388596985,2.69314869,1816.0,1815.9,5.514]
[1743388597174,5.95,1816.1,1815.9,5.514]
[1743388598255,11.45635,1816.1,1815.7,5.50728]
[1743388598483,2.69314869,1816.0,1815.8,5.51]
[1743388598785,8.19978869,1816.0,1815.8,5.51]
[1743388599381,8.19978869,1816.0,1815.5,31.786]
[1743388599382,5.50735,1815.8,1815.5,31.786]
[1743388599585,2.69314869,1815.8,1815.5,31.786]
[1743388599757,2.69314869,1815.8,1815.5,37.29393]
[1743388602801,11.83957,1815.9,1815.5,31.786]
[1743388603201,6.33241,1815.9,1815.5,31.786]
[1743388603582,0.8255,1815.9,1815.6,5.5077]
[1743388603776,0.8255,1815.9,1815.6,5.50769]
[1743388604896,2.69314869,1816.0,1815.7,5.50747]
[1743388605098,5.95,1816.1,1816.0,5.5066]
[1743388605301,8.64314869,1816.5,1816.2,5.506]
[1743388605471,9.45294869,1816.5,1816.1,5.50627]
[1743388605667,14.95809869,1816.5,1816.2,5.504]
[1743388606176,8.64314869,1816.5,1816.2,11.00998]
[1743388606370,14.95746869,1816.7,1816.3,5.50557]
[1743388606584,17.00364556,1816.7,1816.3,5.50557]
[1743388606797,22.50837556,1816.7,1816.3,5.50557]
[1743388607200,9.45294869,1816.7,1816.4,5.50538]
[1743388607803,3.50294869,1816.9,1816.6,5.50464]
[1743388607988,3.50294869,1816.9,1816.5,5.50484]
[1743388608298,3.50294869,1816.9,1816.6,5.50457]
[1743388608498,0.8098,1816.9,1816.6,5.50457]
[1743388608803,0.8098,1816.9,1816.6,5.503]
[1743388610877,6.31394,1816.9,1816.6,5.503]
[1743388611439,0.8098,1816.9,1816.6,5.503]
[1743388611608,3.50294869,1817.1,1816.7,5.5043]
[1743388611779,3.50294869,1817.1,1816.8,5.50395]
[1743388612103,2.69314869,1817.1,1816.9,5.50384]
[1743388612807,2.69314869,1817.1,1816.7,5.50443]
[1743388613178,8.19644869,1817.1,1816.7,5.50443]
[1743388613786,2.69314869,1817.1,1816.7,11.0087]
[1743388613980,2.69314869,1817.1,1816.7,5.50427]
[1743388614321,0.8098,1817.0,1816.6,0.7809]
[1743388614609,13.70127869,1816.9,1816.5,5.502]
[1743388614813,5.50421,1816.8,1816.4,42.78826]
[1743388615180,0.8098,1817.0,1816.6,5.50461]
[1743388615181,6.31342,1817.0,1816.6,5.50461]
[1743388618210,0.8098,1817.0,1816.6,11.00922]
[1743388618415,6.31349,1817.0,1816.6,5.50461]
[1743388618593,11.81731,1817.0,1816.6,5.50461]
[1743388618993,0.8098,1817.0,1816.6,5.50461]
[1743388619711,0.8098,1817.0,1816.7,5.50435]
[1743388619902,0.8098,1817.0,1816.6,5.50461]
[1743388620108,6.31344,1817.0,1816.6,5.50461]
[1743388620320,5.50392,1816.9,1816.5,6.27448]
[1743388620615,2.69314869,1816.9,1816.5,6.27435]
[1743388620810,2.69314869,1816.9,1816.6,5.50476]
[1743388621015,2.69314869,1816.9,1816.5,6.27435]
[1743388622413,2.69314869,1816.9,1816.6,5.50459]
[1743388623116,8.19705869,1816.9,1816.5,6.27446]
[1743388624314,2.69314869,1816.9,1816.5,11.77938]
[1743388624508,2.69314869,1816.9,1816.6,5.50476]
[1743388624706,0.8098,1817.0,1816.6,6.05478]
[1743388625014,12.21699,1817.2,1816.8,5.50392]
[1743388625223,12.21699,1817.2,1816.8,11.00492]
[1743388625384,12.21699,1817.2,1816.8,16.50893]
[1743388625589,14.91013869,1817.2,1816.8,11.00492]
[1743388625783,8.19697869,1817.0,1816.6,5.501]
[1743388626107,8.19732869,1816.8,1816.4,5.50539]
[1743388626306,8.19732869,1816.8,1816.4,11.00639]
[1743388629018,0.764,1816.5,1816.2,38.39431044]
[1743388629315,0.764,1816.5,1816.2,42.7848]
[1743388629516,0.764,1816.7,1816.3,5.50548]
[1743388629717,5.95,1816.8,1816.5,5.50496]
[1743388630018,5.95,1816.8,1816.7,5.50448]
[1743388630229,0.764,1816.9,1816.7,5.50448]
[1743388630431,0.764,1816.9,1816.6,11.00578]
[1743388630601,1.390778,1816.9,1816.6,11.00578]
[1743388630802,9.58783669,1816.9,1816.6,5.501]
[1743388631814,3.45714869,1816.9,1816.6,5.501]
[1743388632321,14.91043869,1817.1,1816.6,11.00567]
[1743388632520,14.91043869,1817.1,1816.7,5.50431]
[1743388633032,14.91043869,1817.1,1816.7,11.00865]
[1743388633235,14.91043869,1817.1,1816.7,1.3667]
[1743388633236,9.40714869,1817.1,1816.7,1.3667]
[1743388633530,0.7574,1817.4,1817.1,5.50308]
[1743388633943,2.69314869,1817.5,1817.2,5.50295]
[1743388634114,15.3212301,1817.6,1817.2,5.50295]
[1743388634427,23.20550411,1817.6,1817.1,5.50308]
[1743388635231,13.69773869,1817.5,1817.0,17.32461]
[1743388635434,13.69773869,1817.5,1817.0,11.82105]
[1743388635612,0.7574,1817.2,1816.8,5.501]
[1743388635938,0.7574,1817.2,1816.5,11.00591]
[1743388635939,0.7574,1816.9,1816.5,11.00591]
[1743388636131,6.26141,1816.9,1816.5,11.00591]
[1743388636320,0.7574,1816.9,1816.6,11.00923]
[1743388636500,0.7574,1816.9,1816.6,5.5046]
[1743388637839,0.7574,1816.9,1816.7,5.50442]
[1743388638135,0.7574,1817.1,1816.7,5.50425]
[1743388638307,2.79806287,1817.1,1816.7,5.50425]
[1743388638510,0.7574,1816.9,1816.5,11.00592]
[1743388638733,0.7574,1816.9,1816.5,5.501]
[1743388638954,0.7574,1816.9,1816.6,5.50457]
[1743388639239,0.7574,1816.9,1816.6,5.50455]
[1743388639409,0.7574,1816.9,1816.6,11.0091]
[1743388639838,0.7574,1816.9,1816.6,5.50455]
[1743388640138,0.7574,1816.9,1816.7,5.50441]
[1743388640340,0.7574,1816.9,1816.6,5.50455]
[1743388640639,0.7574,1816.9,1816.6,11.0091]
[1743388640939,0.7574,1816.9,1816.6,5.50455]
[1743388641342,0.7574,1816.9,1816.7,5.50426]
[1743388641923,0.7574,1817.1,1816.9,5.50383]
[1743388643009,6.26074,1817.1,1816.7,5.50434]
[1743388643209,2.69314869,1817.0,1816.6,5.50478]
[1743388643439,0.7574,1816.8,1816.4,11.00514]
[1743388643628,5.50479,1816.6,1816.3,5.5]
[1743388644033,8.95475869,1816.8,1816.3,5.5]
[1743388644246,8.95475869,1816.8,1816.4,5.50525]
[1743388644417,10.40064756,1816.8,1816.4,5.50525]
[1743388644818,0.7574,1816.8,1816.6,5.50464]
[1743388645345,8.95412869,1817.0,1816.6,5.50464]
[1743388645546,0.7574,1817.0,1816.7,11.00855]
[1743388645921,3.45054869,1817.0,1816.5,11.00984]
[1743388646150,8.95431869,1817.0,1816.7,5.5]
[1743388646351,3.45054869,1817.0,1816.7,5.5]
[1743388646540,3.45054869,1817.0,1816.7,11.00448]
[1743388647435,0.7574,1817.0,1816.7,11.00443]
[1743388647615,6.26098,1817.0,1816.7,5.5]
[1743388648029,8.95412869,1817.0,1816.7,5.5]
[1743388648436,3.45054869,1817.0,1816.7,11.00439]
[1743388648620,0.7574,1817.0,1816.7,11.00429]
[1743388648823,0.7521,1817.2,1816.9,5.50359]
[1743388649346,0.7521,1817.4,1817.1,5.50311]
[1743388649548,0.7521,1817.4,1817.1,11.00311]
[1743388650851,0.7521,1817.4,1817.2,5.50289]
[1743388651152,0.7521,1817.5,1817.2,5.50289]
[1743388651353,0.7521,1817.5,1817.1,11.00311]
[1743388651541,6.25419,1817.5,1817.1,11.00311]
[1743388651922,0.7521,1817.5,1817.1,11.00309]
[1743388652353,0.7521,1817.5,1817.2,5.5029]
[1743388653256,6.25428,1817.5,1817.1,11.00309]
[1743388653683,6.33334,1817.3,1817.0,5.499]
[1743388654242,0.8305,1817.3,1817.0,5.499]
[1743388654441,0.8305,1817.3,1817.0,11.00235]
[1743388654747,0.8305,1817.3,1817.0,5.499]
[1743388654947,0.8305,1817.3,1817.0,11.00255]
[1743388655254,9.02572869,1817.5,1817.1,5.50325]
[1743388655460,9.96893557,1817.5,1817.0,16.50592]
[1743388656471,5.50237,1817.4,1817.0,16.50579]
[1743388656658,5.50237,1817.4,1817.0,11.00237]
[1743388657223,9.96893557,1817.5,1817.0,11.00237]
[1743388657455,9.96893557,1817.5,1817.1,5.50324]
[1743388657958,9.96893557,1817.5,1817.1,11.00636]
[1743388658131,9.96893557,1817.5,1817.1,5.50312]
[1743388658555,4.46685557,1817.5,1817.1,5.50312]
[1743388658933,8.64314869,1817.7,1817.4,5.50236]
[1743388659131,2.69314869,1817.7,1817.3,5.50247]
[1743388659327,2.69314869,1817.7,1817.4,5.50208]
[1743388659557,2.69314869,1817.7,1817.5,5.50194]
[1743388659932,2.69314869,1817.7,1817.3,5.50264]
[1743388660133,2.69314869,1817.7,1817.4,5.499]
[1743388660432,5.5021,1817.5,1817.1,6.30551]
[1743388660632,9.02574869,1817.5,1817.2,5.499]
[1743388661234,3.52364869,1817.5,1817.2,5.499]
[1743388665388,9.02571869,1817.5,1817.2,5.499]
[1743388665540,0.8258,1817.2,1816.9,5.50358]
[1743388665851,0.8258,1817.2,1816.9,11.00158]
[1743388666361,6.3288,1817.2,1816.9,5.498]
[1743388666662,0.8258,1816.9,1816.7,31.771]
[1743388667079,9.02293869,1816.9,1816.7,31.771]
[1743388667234,8.19746869,1816.8,1816.4,11.00336]
[1743388667434,2.69314869,1816.8,1816.5,14.5]
[1743388667664,2.69314869,1816.8,1816.5,20.00497]
[1743388668252,2.69314869,1816.8,1816.5,25.50993]
[1743388668568,2.69314869,1816.8,1816.6,5.50472]
[1743388668762,6.32968,1816.9,1816.5,20.00496]
[1743388668968,2.69314869,1816.8,1816.5,20.00496]
[1743388670650,0.8258,1816.9,1816.5,14.5]
[1743388670956,6.32971,1816.9,1816.5,20.00496]
[1743388672567,0.8258,1816.9,1816.6,5.50471]
[1743388672771,0.8258,1816.9,1816.6,11.00932]
[1743388672936,0.8258,1816.9,1816.7,5.50423]
[1743388673143,0.8258,1816.9,1816.7,14.5]
[1743388674476,7.82707387,1816.9,1816.7,14.5]
[1743388676287,2.32306387,1816.9,1816.7,14.5]